fUST/lending_fUST_20250625
["ID","MTS","AMOUNT","RATE_DAILY","PERIOD"]
[367474417,1750809046785,-223.0315306,0.00019598,2]
[367474418,1750809046794,-1908.100735,0.00019599,2]
[367474419,1750809046804,-151.0,0.000196,2]
[367474420,1750809046813,-151.0,0.000196,2]
[367474421,1750809046822,-168.0,0.0001962,2]
[367474422,1750809046832,-587.0,0.00019625,2]
[367474423,1750809046842,-587.0,0.00019627,2]
[367474424,1750809046851,-790.0,0.00019677,3]
[367474425,1750809046860,-460.0,0.00019726,2]
[367474426,1750809046869,-460.0,0.00019726,2]
[367474427,1750809046879,-608.12,0.00019726,2]
[367474428,1750809046888,-460.0,0.00019726,2]
[367474429,1750809046898,-568.95,0.00019726,2]
[367474430,1750809046907,-2049.69,0.00019726,2]
[367474431,1750809046917,-658.13,0.00019726,2]
[367474432,1750809046927,-752.05,0.00019726,2]
[367474433,1750809046937,-496.34,0.00019726,2]
[367474434,1750809046947,-460.0,0.00019726,2]
[367474435,1750809046956,-507.74,0.00019726,2]
[367474436,1750809046965,-582.77,0.00019726,2]
[367474437,1750809046975,-621.28,0.00019726,2]
[367474438,1750809046984,-19161.52923571,0.00019762,2]
[367474439,1750809046993,-168.0,0.00019762,2]
[367474440,1750809047002,-355.254672,0.000198,5]
[367474441,1750809047011,-238.717749,0.000198,3]
[367474442,1750809047020,-480.0,0.00019822,2]
[367474443,1750809047030,-314.0,0.00019828,2]
[367474444,1750809047040,-160.0,0.00019861,3]
[367474445,1750809047050,-790.0,0.00019864,3]
[367474446,1750809047059,-168.0,0.00019867,2]
[367474447,1750809047069,-168.0,0.00019917,2]
[367474448,1750809047078,-600.0,0.00019949,2]
[367474449,1750809047088,-2200.0,0.0001996,2]
[367474450,1750809047098,-800.603,0.0001996,2]
[367474451,1750809047107,-19161.52923571,0.00019969,2]
[367474452,1750809047117,-500.0,0.00019973,2]
[367474453,1750809047126,-500.0,0.00019973,2]
[367474454,1750809047135,-500.0,0.00019973,2]
[367474455,1750809047145,-500.00000001,0.00019973,2]
[367474456,1750809047155,-503.62943217,0.00019973,2]
[367474457,1750809047164,-354.6155038,0.00019973,2]
[367474458,1750809047174,-238.717749,0.00019974,2]
[367474459,1750809047183,-67889.47759266,0.0002,2]
[367474460,1750809047193,-2871.16349796,0.0002,2]
[367474461,1750809047202,-7777.0,0.0002,7]
[367474462,1750809047212,-67593.11528451,0.0002,2]
[367474463,1750809047221,-160.0,0.0002,7]
[367474464,1750809047231,-3575.0,0.0002,2]
[367474465,1750809047241,-177.392,0.0002,2]
[367474466,1750809047250,-76633.0,0.0002,2]
[367474467,1750809047259,-4700.0,0.0002,3]
[367474468,1750809047269,-153.0,0.0002,2]
[367474469,1750809047279,-153.0,0.0002,2]
[367474470,1750809047288,-153.0,0.0002,2]
[367474471,1750809047297,-11187.30243982,0.0002,2]
[367474472,1750809047306,-13640.56659704,0.0002,2]
[367474473,1750809047316,-1186.30353406,0.0002,2]
[367474474,1750809047325,-53572.75836276,0.0002,20]
[367474475,1750809047334,-361.23988175,0.0002,2]
[367474476,1750809047344,-25390.01564429,0.0002,2]
[367474477,1750809047358,-3189.49730395,0.0002,2]
[367474480,1750809195171,3000.0,0.00023,30]
[367474481,1750809304243,10865.95163323,0.00015575,2]
[367474482,1750809304267,14034.04836677,0.00015575,2]
[367474484,1750809438996,404.270193,0.00013699,2]
[367474486,1750809631604,200.0,0.00023589,120]
[367474487,1750809691052,200.0,0.00022949,120]
[367474488,1750809751827,200.0,0.00024248,120]
[367474489,1750810110950,200.0,0.00024136,120]
[367474494,1750810230716,200.0,0.00024626,120]
[367474509,1750810232609,-500.0,0.00016337,2]
[367474510,1750810232619,-500.0,0.00016337,2]
[367474511,1750810232628,-500.0,0.00016337,2]
[367474512,1750810232638,-368.01148837,0.00016337,2]
[367474513,1750810232647,-300.0,0.00016431,2]
[367474514,1750810232657,-300.0,0.00016431,2]
[367474515,1750810232667,-1200.0,0.00016431,2]
[367474516,1750810232676,-500.0,0.00016432,2]
[367474517,1750810232686,-500.0,0.00016432,2]
[367474518,1750810232695,-403.35617508,0.00016432,2]
[367474519,1750810232704,-500.0,0.00016432,2]
[367474520,1750810232713,-267.666903,0.00016432,2]
[367474521,1750810232723,-500.0,0.00016432,2]
[367474522,1750810232732,-359.59246748,0.00016432,2]
[367474523,1750810232742,-500.0,0.00016432,2]
[367474524,1750810232751,-395.02376725,0.00016432,2]
[367474525,1750810232761,-500.0,0.00016432,2]
[367474526,1750810232771,-500.0,0.00016432,2]
[367474527,1750810232780,-444.5183015,0.00016432,2]
[367474528,1750810232791,-500.0,0.00016432,2]
[367474529,1750810232800,-32982.9670702,0.00016433,2]
[367474530,1750810232816,-298.25819252,0.00016433,2]
[367474531,1750810232828,-16718.77473728,0.00016433,2]
[367474532,1750810232839,-783.41056669,0.00016437,2]
[367474533,1750810232849,-783.41056669,0.00016437,2]
[367474534,1750810232858,-783.41056669,0.00016437,2]
[367474535,1750810232868,-783.41056669,0.00016437,2]
[367474536,1750810232878,-783.41056669,0.00016437,2]
[367474537,1750810232887,-783.41056669,0.00016437,2]
[367474538,1750810232896,-783.41056669,0.00016437,2]
[367474539,1750810232905,-783.41056669,0.00016437,2]
[367474540,1750810232914,-783.41056669,0.00016437,2]
[367474541,1750810232923,-783.41056669,0.00016437,2]
[367474542,1750810232933,-783.41056669,0.00016437,2]
[367474543,1750810232942,-783.41056669,0.00016437,2]
[367474544,1750810232951,-783.41056669,0.00016437,2]
[367474545,1750810232962,-783.41056669,0.00016437,2]
[367474546,1750810232974,-846.08341203,0.00016437,2]
[367474547,1750810232984,-846.08341203,0.00016437,2]
[367474548,1750810232993,-846.08341203,0.00016437,2]
[367474549,1750810233002,-846.08341203,0.00016437,2]
[367474550,1750810233013,-846.08341203,0.00016437,2]
[367474551,1750810233023,-846.08341203,0.00016437,2]
[367474552,1750810233034,-846.08341203,0.00016437,2]
[367474553,1750810233044,-846.08341203,0.00016437,2]
[367474554,1750810233054,-1418.8167986,0.00016437,2]
[367474555,1750810233063,-471.79044387,0.00016438,2]
[367474556,1750810233073,-460.0,0.00016438,2]
[367474557,1750810233083,-460.0,0.00016438,2]
[367474558,1750810233093,-526.78093671,0.00016438,2]
[367474559,1750810233103,-460.0,0.00016438,2]
[367474560,1750810233120,-460.0,0.00016438,2]
[367474561,1750810233129,-460.0,0.00016438,2]
[367474562,1750810233139,-460.0,0.00016438,2]
[367474563,1750810233149,-460.0,0.00016438,2]
[367474564,1750810233158,-460.0,0.00016438,2]
[367474565,1750810233168,-460.0,0.00016438,2]
[367474566,1750810233178,-460.0,0.00016438,2]
[367474567,1750810233187,-460.0,0.00016438,2]
[367474568,1750810233197,-460.0,0.00016438,2]
[367474569,1750810233206,-460.0,0.00016438,2]
[367474570,1750810233215,-542.91629727,0.00016438,2]
[367474571,1750810233225,-487.8787132,0.00016438,2]
[367474572,1750810233235,-460.0,0.00016438,2]
[367474573,1750810233245,-460.0,0.00016438,2]
[367474574,1750810233254,-460.0,0.00016438,2]
[367474575,1750810233263,-201.48994464,0.00016438,2]
[367474576,1750810233273,-460.0,0.00016438,2]
[367474577,1750810233283,-460.0,0.00016438,2]
[367474578,1750810233292,-460.61338358,0.00016438,2]
[367474579,1750810233303,-460.0,0.00016438,2]
[367474580,1750810233313,-597.70771196,0.00016438,2]
[367474581,1750810233323,-460.0,0.00016438,2]
[367474582,1750810233332,-460.0,0.00016438,2]
[367474583,1750810233343,-460.0,0.00016438,2]
[367474584,1750810233352,-395.11471437,0.00016438,2]
[367474585,1750810233362,-460.0,0.00016438,2]
[367474586,1750810233372,-460.0,0.00016438,2]
[367474587,1750810233382,-460.0,0.00016438,2]
[367474588,1750810233391,-460.0,0.00016438,2]
[367474589,1750810233401,-460.0,0.00016438,2]
[367474590,1750810233411,-460.0,0.00016438,2]
[367474591,1750810233420,-460.0,0.00016438,2]
[367474592,1750810233430,-460.0,0.00016438,2]
[367474593,1750810233439,-460.0,0.00016438,2]
[367474594,1750810233449,-229.3221117,0.00016438,2]
[367474595,1750810233458,-460.0,0.00016438,2]
[367474596,1750810233468,-460.0,0.00016438,2]
[367474597,1750810233478,-460.0,0.00016438,2]
[367474598,1750810233487,-547.85,0.00016438,2]
[367474599,1750810233497,-189.66,0.00016438,2]
[367474600,1750810233506,-460.0,0.00016438,2]
[367474601,1750810233515,-460.0,0.00016438,2]
[367474602,1750810233524,-460.0,0.00016438,2]
[367474603,1750810233534,-460.0,0.00016438,2]
[367474604,1750810233543,-460.0,0.00016438,2]
[367474605,1750810233553,-460.0,0.00016438,2]
[367474606,1750810233562,-590.54286958,0.00016438,2]
[367474607,1750810233572,-460.0,0.00016438,2]
[367474608,1750810233583,-460.0,0.00016438,2]
[367474609,1750810233594,-460.0,0.00016438,2]
[367474610,1750810233604,-460.0,0.00016438,2]
[367474611,1750810233614,-460.0,0.00016438,2]
[367474612,1750810233623,-460.0,0.00016438,2]
[367474613,1750810233633,-270.37947932,0.00016438,2]
[367474614,1750810233644,-460.0,0.00016438,2]
[367474615,1750810233653,-460.0,0.00016438,2]
[367474616,1750810233663,-460.0,0.00016438,2]
[367474617,1750810233672,-479.83803242,0.00016438,2]
[367474618,1750810233682,-460.0,0.00016438,2]
[367474619,1750810233692,-460.0,0.00016438,2]
[367474620,1750810233702,-507.23220733,0.00016438,2]
[367474621,1750810233712,-460.0,0.00016438,2]
[367474622,1750810233722,-460.0,0.00016438,2]
[367474623,1750810233732,-500.0,0.00016438,2]
[367474624,1750810233741,-500.0,0.00016438,2]
[367474625,1750810233751,-500.0,0.00016438,2]
[367474626,1750810233761,-500.0,0.00016438,2]
[367474627,1750810233771,-500.0,0.00016438,2]
[367474628,1750810233782,-500.0,0.00016438,2]
[367474629,1750810233791,-500.0,0.00016438,2]
[367474630,1750810233801,-460.0,0.00016438,2]
[367474631,1750810233810,-460.0,0.00016438,2]
[367474632,1750810233820,-460.0,0.00016438,2]
[367474633,1750810233829,-460.0,0.00016438,2]
[367474634,1750810233839,-460.0,0.00016438,2]
[367474635,1750810233849,-575.95850127,0.00016438,2]
[367474636,1750810233859,-460.0,0.00016438,2]
[367474637,1750810233869,-460.0,0.00016438,2]
[367474638,1750810233879,-460.0,0.00016438,2]
[367474639,1750810233889,-460.0,0.00016438,2]
[367474640,1750810233900,-460.0,0.00016438,2]
[367474641,1750810233910,-460.0,0.00016438,2]
[367474642,1750810233919,-460.0,0.00016438,2]
[367474643,1750810233929,-183.68,0.00016438,2]
[367474644,1750810233939,-460.0,0.00016438,2]
[367474645,1750810233948,-460.0,0.00016438,2]
[367474646,1750810233958,-508.85404565,0.00016438,2]
[367474647,1750810233972,-460.0,0.00016438,2]
[367474648,1750810233982,-460.0,0.00016438,2]
[367474649,1750810233991,-460.0,0.00016438,2]
[367474650,1750810234001,-460.0,0.00016438,2]
[367474651,1750810234010,-460.0,0.00016438,2]
[367474652,1750810234020,-460.0,0.00016438,2]
[367474653,1750810234030,-460.0,0.00016438,2]
[367474654,1750810234039,-460.0,0.00016438,2]
[367474655,1750810234049,-460.0,0.00016438,2]
[367474656,1750810234059,-460.0,0.00016438,2]
[367474657,1750810234069,-460.0,0.00016438,2]
[367474658,1750810234078,-460.0,0.00016438,2]
[367474659,1750810234087,-460.0,0.00016438,2]
[367474660,1750810234097,-460.0,0.00016438,2]
[367474661,1750810234106,-460.0,0.00016438,2]
[367474662,1750810234116,-460.0,0.00016438,2]
[367474663,1750810234125,-460.0,0.00016438,2]
[367474664,1750810234135,-460.0,0.00016438,2]
[367474665,1750810234144,-460.0,0.00016438,2]
[367474666,1750810234154,-460.0,0.00016438,2]
[367474667,1750810234163,-460.0,0.00016438,2]
[367474668,1750810234173,-460.0,0.00016438,2]
[367474669,1750810234183,-461.26898846,0.00016438,2]
[367474670,1750810234192,-611.9,0.00016438,2]
[367474671,1750810234201,-460.0,0.00016438,2]
[367474672,1750810234211,-1027.08,0.00016438,2]
[367474673,1750810234222,-447.10575592,0.00016438,2]
[367474674,1750810234231,-460.0,0.00016438,2]
[367474675,1750810234241,-460.0,0.00016438,2]
[367474676,1750810234250,-460.0,0.00016438,2]
[367474677,1750810234260,-460.0,0.00016438,2]
[367474678,1750810234270,-460.0,0.00016438,2]
[367474679,1750810234280,-460.0,0.00016438,2]
[367474680,1750810234289,-460.0,0.00016438,2]
[367474681,1750810234299,-460.0,0.00016438,2]
[367474682,1750810234309,-460.0,0.00016438,2]
[367474683,1750810234318,-460.0,0.00016438,2]
[367474684,1750810234328,-460.0,0.00016438,2]
[367474685,1750810234337,-531.57,0.00016438,2]
[367474686,1750810234347,-460.0,0.00016438,2]
[367474687,1750810234356,-460.0,0.00016438,2]
[367474688,1750810234366,-460.0,0.00016438,2]
[367474689,1750810234537,-460.0,0.00016438,2]
[367474690,1750810234547,-460.0,0.00016438,2]
[367474691,1750810234557,-461.34,0.00016438,2]
[367474692,1750810234566,-460.0,0.00016438,2]
[367474693,1750810234575,-460.0,0.00016438,2]
[367474694,1750810234584,-460.0,0.00016438,2]
[367474695,1750810234593,-460.0,0.00016438,2]
[367474696,1750810234602,-460.0,0.00016438,2]
[367474697,1750810234612,-460.0,0.00016438,2]
[367474698,1750810234621,-460.0,0.00016438,2]
[367474699,1750810234630,-460.0,0.00016438,2]
[367474700,1750810234639,-460.0,0.00016438,2]
[367474701,1750810234649,-460.0,0.00016438,2]
[367474702,1750810234659,-460.0,0.00016438,2]
[367474703,1750810234668,-460.0,0.00016438,2]
[367474704,1750810234678,-460.0,0.00016438,2]
[367474705,1750810234687,-460.0,0.00016438,2]
[367474706,1750810234696,-460.0,0.00016438,2]
[367474707,1750810234705,-460.0,0.00016438,2]
[367474708,1750810234715,-460.0,0.00016438,2]
[367474709,1750810234724,-460.0,0.00016438,2]
[367474710,1750810234734,-460.0,0.00016438,2]
[367474711,1750810234743,-840.1,0.00016438,2]
[367474712,1750810234753,-500.0,0.00016438,2]
[367474713,1750810234762,-460.0,0.00016438,2]
[367474714,1750810234772,-460.0,0.00016438,2]
[367474715,1750810234782,-460.0,0.00016438,2]
[367474716,1750810234791,-460.0,0.00016438,2]
[367474717,1750810234800,-460.0,0.00016438,2]
[367474718,1750810234809,-460.0,0.00016438,2]
[367474719,1750810234819,-460.0,0.00016438,2]
[367474720,1750810234828,-500.0,0.00016438,2]
[367474721,1750810234837,-460.0,0.00016438,2]
[367474722,1750810234846,-460.0,0.00016438,2]
[367474723,1750810234855,-460.0,0.00016438,2]
[367474724,1750810234864,-460.0,0.00016438,2]
[367474725,1750810234874,-460.0,0.00016438,2]
[367474726,1750810234884,-738.45,0.00016438,2]
[367474727,1750810234893,-460.0,0.00016438,2]
[367474728,1750810234903,-460.0,0.00016438,2]
[367474729,1750810234912,-460.0,0.00016438,2]
[367474730,1750810234922,-536.46,0.00016438,2]
[367474731,1750810234932,-460.0,0.00016438,2]
[367474732,1750810234941,-460.0,0.00016438,2]
[367474733,1750810234951,-460.0,0.00016438,2]
[367474734,1750810234962,-460.0,0.00016438,2]
[367474735,1750810234975,-460.0,0.00016438,2]
[367474736,1750810234985,-460.0,0.00016438,2]
[367474737,1750810234995,-470.59504887,0.00016438,2]
[367474738,1750810235006,-460.0,0.00016438,2]
[367474739,1750810235015,-460.0,0.00016438,2]
[367474740,1750810235024,-460.0,0.00016438,2]
[367474741,1750810235034,-460.0,0.00016438,2]
[367474742,1750810235044,-470.03,0.00016438,2]
[367474743,1750810235053,-460.0,0.00016438,2]
[367474744,1750810235062,-460.0,0.00016438,2]
[367474745,1750810235072,-1280.95,0.00016438,2]
[367474746,1750810235082,-460.0,0.00016438,2]
[367474747,1750810235091,-460.0,0.00016438,2]
[367474748,1750810235101,-460.0,0.00016438,2]
[367474749,1750810235110,-460.0,0.00016438,2]
[367474750,1750810235119,-460.0,0.00016438,2]
[367474751,1750810235128,-1131.68,0.00016438,2]
[367474752,1750810235137,-460.0,0.00016438,2]
[367474753,1750810235146,-460.0,0.00016438,2]
[367474754,1750810235155,-460.0,0.00016438,2]
[367474755,1750810235165,-460.0,0.00016438,2]
[367474756,1750810235174,-460.0,0.00016438,2]
[367474757,1750810235183,-460.0,0.00016438,2]
[367474758,1750810235192,-460.0,0.00016438,2]
[367474759,1750810235201,-460.0,0.00016438,2]
[367474760,1750810235211,-460.0,0.00016438,2]
[367474761,1750810235220,-460.0,0.00016438,2]
[367474762,1750810235230,-460.0,0.00016438,2]
[367474763,1750810235239,-880.75,0.00016438,2]
[367474764,1750810235248,-460.0,0.00016438,2]
[367474765,1750810235258,-460.0,0.00016438,2]
[367474766,1750810235267,-460.0,0.00016438,2]
[367474767,1750810235277,-460.0,0.00016438,2]
[367474768,1750810235286,-460.0,0.00016438,2]
[367474769,1750810235295,-468.3830879,0.00016438,2]
[367474770,1750810235305,-460.0,0.00016438,2]
[367474771,1750810235314,-460.0,0.00016438,2]
[367474772,1750810235323,-460.0,0.00016438,2]
[367474773,1750810235333,-460.0,0.00016438,2]
[367474774,1750810235343,-460.0,0.00016438,2]
[367474775,1750810235353,-1965.08,0.00016438,2]
[367474776,1750810235362,-460.0,0.00016438,2]
[367474777,1750810235371,-460.0,0.00016438,2]
[367474778,1750810235381,-460.0,0.00016438,2]
[367474779,1750810235392,-460.0,0.00016438,2]
[367474780,1750810235401,-460.0,0.00016438,2]
[367474781,1750810235411,-780.71,0.00016438,2]
[367474782,1750810235421,-239.77420816,0.00016438,2]
[367474783,1750810235431,-460.0,0.00016438,2]
[367474784,1750810235440,-460.0,0.00016438,2]
[367474785,1750810235450,-500.0,0.00016438,2]
[367474786,1750810235459,-1025.14355875,0.00016612,2]
[367474787,1750810235470,-500.0,0.00016711,2]
[367474788,1750810235479,-500.0,0.00016711,2]
[367474789,1750810235489,-460.0,0.00016712,2]
[367474790,1750810235499,-440.0,0.00016712,2]
[367474791,1750810235508,-460.0,0.00016712,2]
[367474792,1750810235518,-460.0,0.00016712,2]
[367474793,1750810235527,-460.0,0.00016712,2]
[367474794,1750810235536,-460.0,0.00016712,2]
[367474795,1750810235546,-454.74908266,0.00016712,2]
[367474796,1750810235555,-437.66192859,0.00016712,2]
[367474797,1750810235564,-460.0,0.00016712,2]
[367474798,1750810235574,-169.03,0.00016712,2]
[367474799,1750810235583,-460.0,0.00016712,2]
[367474800,1750810235594,-282.55496365,0.00016712,2]
[367474801,1750810235603,-460.0,0.00016712,2]
[367474802,1750810235613,-362.73947069,0.00016712,2]
[367474803,1750810235622,-460.0,0.00016712,2]
[367474804,1750810235632,-460.0,0.00016712,2]
[367474805,1750810235641,-460.0,0.00016712,2]
[367474806,1750810235650,-225.31745559,0.00016712,2]
[367474807,1750810235660,-460.0,0.00016712,2]
[367474808,1750810235669,-460.0,0.00016712,2]
[367474809,1750810235678,-460.0,0.00016712,2]
[367474810,1750810235688,-322.48,0.00016712,2]
[367474811,1750810235697,-460.0,0.00016712,2]
[367474812,1750810235707,-460.0,0.00016712,2]
[367474813,1750810235717,-460.0,0.00016712,2]
[367474814,1750810235726,-460.0,0.00016712,2]
[367474815,1750810235735,-295.66000001,0.00016712,2]
[367474816,1750810235745,-460.0,0.00016712,2]
[367474817,1750810235755,-322.80466242,0.00016712,2]
[367474818,1750810235764,-460.0,0.00016712,2]
[367474819,1750810235774,-460.0,0.00016712,2]
[367474820,1750810235784,-460.0,0.00016712,2]
[367474821,1750810235793,-460.0,0.00016712,2]
[367474822,1750810235802,-460.0,0.00016712,2]
[367474823,1750810235812,-460.0,0.00016712,2]
[367474824,1750810235821,-460.0,0.00016712,2]
[367474825,1750810235831,-460.0,0.00016712,2]
[367474826,1750810235841,-258.81,0.00016712,2]
[367474827,1750810235850,-460.0,0.00016712,2]
[367474828,1750810235860,-460.0,0.00016712,2]
[367474829,1750810235869,-460.0,0.00016712,2]
[367474830,1750810235879,-460.0,0.00016712,2]
[367474831,1750810235888,-157.09,0.00016712,2]
[367474832,1750810235897,-460.0,0.00016712,2]
[367474833,1750810235907,-460.0,0.00016712,2]
[367474834,1750810235916,-460.0,0.00016712,2]
[367474835,1750810235926,-460.0,0.00016712,2]
[367474836,1750810235936,-611.9,0.00016712,2]
[367474837,1750810235946,-1027.08,0.00016712,2]
[367474838,1750810235955,-460.0,0.00016712,2]
[367474839,1750810235970,-460.0,0.00016712,2]
[367474840,1750810235979,-320.85269026,0.00016712,2]
[367474841,1750810235989,-460.0,0.00016712,2]
[367474842,1750810235999,-460.0,0.00016712,2]
[367474843,1750810236008,-460.0,0.00016712,2]
[367474844,1750810236017,-460.0,0.00016712,2]
[367474845,1750810236027,-460.0,0.00016712,2]
[367474846,1750810236036,-460.0,0.00016712,2]
[367474847,1750810236046,-323.40452476,0.00016712,2]
[367474862,1750810238652,-460.0,0.00016438,2]
[367474863,1750810238661,-460.0,0.00016438,2]
[367474864,1750810238670,-460.0,0.00016438,2]
[367474865,1750810238679,-136.59547524,0.00016712,2]
[367474866,1750810238688,-531.57,0.00016712,2]
[367474867,1750810238697,-460.0,0.00016712,2]
[367474868,1750810238707,-460.0,0.00016712,2]
[367474869,1750810238716,-460.0,0.00016712,2]
[367474870,1750810238726,-460.0,0.00016712,2]
[367474871,1750810238735,-460.0,0.00016712,2]
[367474872,1750810238745,-461.34,0.00016712,2]
[367474873,1750810238755,-460.0,0.00016712,2]
[367474874,1750810238764,-460.0,0.00016712,2]
[367474875,1750810238774,-460.0,0.00016712,2]
[367474876,1750810238783,-460.0,0.00016712,2]
[367474877,1750810238792,-460.0,0.00016712,2]
[367474878,1750810238802,-460.0,0.00016712,2]
[367474879,1750810238811,-460.0,0.00016712,2]
[367474880,1750810238820,-460.0,0.00016712,2]
[367474881,1750810238830,-460.0,0.00016712,2]
[367474882,1750810238839,-460.0,0.00016712,2]
[367474883,1750810238848,-460.0,0.00016712,2]
[367474884,1750810238858,-460.0,0.00016712,2]
[367474885,1750810238867,-460.0,0.00016712,2]
[367474886,1750810238876,-460.0,0.00016712,2]
[367474887,1750810238886,-460.0,0.00016712,2]
[367474888,1750810238895,-460.0,0.00016712,2]
[367474889,1750810238904,-460.0,0.00016712,2]
[367474890,1750810238914,-840.1,0.00016712,2]
[367474891,1750810238923,-460.0,0.00016712,2]
[367474892,1750810238932,-460.0,0.00016712,2]
[367474893,1750810238941,-460.0,0.00016712,2]
[367474894,1750810238951,-460.0,0.00016712,2]
[367474895,1750810238960,-460.0,0.00016712,2]
[367474896,1750810238974,-460.0,0.00016712,2]
[367474897,1750810238983,-460.0,0.00016712,2]
[367474898,1750810238993,-460.0,0.00016712,2]
[367474899,1750810239003,-460.0,0.00016712,2]
[367474900,1750810239014,-460.0,0.00016712,2]
[367474901,1750810239023,-738.45,0.00016712,2]
[367474902,1750810239032,-460.0,0.00016712,2]
[367474903,1750810239043,-460.0,0.00016712,2]
[367474904,1750810239053,-460.0,0.00016712,2]
[367474905,1750810239062,-460.0,0.00016712,2]
[367474906,1750810239071,-460.0,0.00016712,2]
[367474907,1750810239080,-460.0,0.00016712,2]
[367474908,1750810239090,-460.0,0.00016712,2]
[367474909,1750810239099,-460.0,0.00016712,2]
[367474910,1750810239109,-460.0,0.00016712,2]
[367474911,1750810239118,-460.0,0.00016712,2]
[367474912,1750810239127,-460.0,0.00016712,2]
[367474913,1750810239136,-460.0,0.00016712,2]
[367474914,1750810239146,-463.05249911,0.00016712,2]
[367474915,1750810239156,-1280.95,0.00016712,2]
[367474916,1750810239165,-460.0,0.00016712,2]
[367474917,1750810239174,-460.0,0.00016712,2]
[367474918,1750810239183,-460.0,0.00016712,2]
[367474919,1750810239192,-1131.68,0.00016712,2]
[367474920,1750810239201,-460.0,0.00016712,2]
[367474921,1750810239210,-544.60857995,0.00016712,2]
[367474922,1750810239219,-460.0,0.00016712,2]
[367474923,1750810239229,-460.0,0.00016712,2]
[367474924,1750810239238,-460.0,0.00016712,2]
[367474925,1750810239248,-460.0,0.00016712,2]
[367474926,1750810239257,-460.0,0.00016712,2]
[367474927,1750810239266,-460.0,0.00016712,2]
[367474928,1750810239275,-880.75,0.00016712,2]
[367474929,1750810239285,-460.0,0.00016712,2]
[367474930,1750810239294,-460.0,0.00016712,2]
[367474931,1750810239303,-460.0,0.00016712,2]
[367474932,1750810239312,-460.0,0.00016712,2]
[367474933,1750810239321,-460.0,0.00016712,2]
[367474934,1750810239331,-460.0,0.00016712,2]
[367474935,1750810239340,-460.0,0.00016712,2]
[367474936,1750810239350,-460.0,0.00016712,2]
[367474937,1750810239359,-1965.08,0.00016712,2]
[367474938,1750810239368,-460.0,0.00016712,2]
[367474939,1750810239377,-461.01718797,0.00016712,2]
[367474940,1750810239387,-460.0,0.00016712,2]
[367474941,1750810239396,-780.71,0.00016712,2]
[367474942,1750810239405,-250.45896537,0.00016712,2]
[367474943,1750810239415,-460.0,0.00016712,2]
[367474944,1750810239424,-460.0,0.00016712,2]
[367474945,1750810239433,-460.0,0.00016712,2]
[367474946,1750810239443,-500.0,0.00016959,2]
[367474947,1750810239452,-500.0,0.00016959,2]
[367474948,1750810239461,-557.59556709,0.00016985,2]
[367474949,1750810239470,-460.0,0.00016986,2]
[367474950,1750810239479,-460.0,0.00016986,2]
[367474951,1750810239488,-460.0,0.00016986,2]
[367474952,1750810239497,-294.79258161,0.00016986,2]